fUST/lending_fUST_20250407
["ID","MTS","AMOUNT","RATE_DAILY","PERIOD"]
[357263813,1743964248295,-853.09335294,0.00045,20]
[357263814,1743964248305,-522.7076782,0.00045,14]
[357263815,1743964248315,-1000.0,0.00045,2]
[357263816,1743964248325,-1000.0,0.00045,7]
[357263817,1743964248335,-996.0,0.00045,7]
[357263818,1743964248345,-375.09900363,0.00045,2]
[357263819,1743964248354,-331.5734442,0.00045,120]
[357263820,1743964248364,-159.79785156,0.00045,120]
[357263821,1743964248374,-179.31099826,0.00045,120]
[357263822,1743964248385,-431.43068903,0.00045,2]
[357263823,1743964248396,-1768.0,0.00045,30]
[357263824,1743964248406,-151.0,0.00045,120]
[357263825,1743964248416,-151.0,0.00045,120]
[357263826,1743964248426,-132255.15173804,0.00045,120]
[357263827,1743964249127,-155.0,0.00033,2]
[357263828,1743964249138,-155.0,0.00033151,2]
[357263829,1743964249148,-155.0,0.00034521,2]
[357263830,1743964249158,-155.0,0.00041079,14]
[357263831,1743964249169,-155.0,0.00041425,90]
[357263832,1743964249179,-155.0,0.00043496,90]
[357263833,1743964249189,-1070.0011911,0.00045,120]
[357263834,1743964249206,-155.0,0.00038663,14]
[357263835,1743964249216,-119470.0,0.00045,120]
[357263836,1743964249229,-296.414,0.00045,120]
[357263837,1743964249241,-51191.8790567,0.00045,120]
[357263838,1743964249253,-2189.9538948,0.00045,60]
[357263839,1743964249263,-8303.02582987,0.00045,120]
[357263840,1743964249274,-15643.64974428,0.00045,120]
[357263841,1743964249284,-10572.67464398,0.00045,120]
[357263842,1743964249294,-5999.999999,0.00045,120]
[357263843,1743964249305,-15343.657,0.00045,90]
[357263844,1743964249315,-40454.26340198,0.00045,30]
[357263845,1743964249325,-1279.54086893,0.00045051,120]
[357263846,1743964249336,-200.0,0.00045057,120]
[357263847,1743964249346,-1279.54086893,0.00045151,120]
[357263848,1743964249355,-591.38,0.00045205,7]
[357263849,1743964249366,-1279.54086893,0.00045251,120]
[357263850,1743964249376,-4631.05162835,0.00045314,19]
[357263851,1743964249388,-1279.54086893,0.00045351,120]
[357263852,1743964249400,-233.9513692,0.00045386,30]
[357263853,1743964249410,-1279.54086893,0.00045451,120]
[357263854,1743964249421,-500.0,0.00045452,10]
[357263855,1743964249432,-591.38,0.00045479,9]
[357263856,1743964249443,-153.9,0.000455,39]
[357263857,1743964249455,-153.9,0.000455,39]
[357263858,1743964249466,-153.9,0.000455,39]
[357263859,1743964249478,-3179.26601166,0.00045547,9]
[357263860,1743964249493,-24114.22398834,0.00045547,9]
[357263861,1743964249504,-140885.77601141,0.00045547,9]
[357263862,1743964249518,-9167.69398859,0.00045547,9]
[357263863,1743964249528,-401.0,0.00045551,2]
[357263864,1743964249540,-1279.54086893,0.00045551,120]
[357263865,1743964249550,-1279.54086893,0.00045651,120]
[357263866,1743964249561,-701.83215417,0.00045714,120]
[357263867,1743964249571,-170.071,0.00045745,120]
[357263868,1743964249582,-253.674,0.00045745,120]
[357263869,1743964249593,-1279.54086893,0.00045751,120]
[357263870,1743964249603,-591.38,0.00045753,11]
[357263871,1743964249614,-160.0,0.00045804,5]
[357263872,1743964249624,-1279.54086893,0.00045851,120]
[357263873,1743964249635,-317.9817413,0.0004588,30]
[357263874,1743964249651,-500.0,0.000459,100]
[357263875,1743964249662,-1279.54086893,0.00045951,120]
[357263876,1743964249673,-153.0,0.00045966,30]
[357263877,1743964249683,-153.0,0.00045966,30]
[357263878,1743964249694,-153.0,0.00045966,30]
[357263879,1743964249704,-24.25966301,0.00045966,30]
[357263880,1743964249717,-128.74033699,0.00045966,30]
[357263881,1743964249728,-153.0,0.00045966,30]
[357263882,1743964249738,-439.8983319,0.00045966,30]
[357263883,1743964249749,-167.39528724,0.00045999,60]
[357263884,1743964249799,-291.48,0.00033642,30]
[357263885,1743964249810,-1.447,0.00036247,2]
[357263886,1743964249822,-153.553,0.00036247,2]
[357263887,1743964249832,-133.69141822,0.00045999,60]
[357263888,1743964249842,-861.78014278,0.00046,2]
[357263889,1743964249855,-1141.09099931,0.00046,2]
[357263890,1743964249866,-673.0,0.00046,120]
[357263891,1743964249877,-1000.0,0.00046,120]
[357263892,1743964249891,-500.0,0.00046,120]
[357263893,1743964249902,-21388.5514456,0.00046,120]
[357263894,1743964249912,-591.38,0.00046027,13]
[357263895,1743964249922,-187.79650868,0.00046027,120]
[357263896,1743964249934,-1279.54086893,0.00046051,120]
[357263897,1743964249946,-196.0,0.0004609,30]
[357263898,1743964249957,-4631.05162835,0.00046107,19]
[357263899,1743964249967,-151.0,0.00046108,120]
[357263900,1743964249979,-151.0,0.00046108,120]
[357263901,1743964249989,-220.465756,0.00046108,120]
[357263902,1743964250000,-151.0,0.00046108,110]
[357263903,1743964250011,-151.0,0.00046108,110]
[357263904,1743964250022,-151.0,0.00046108,110]
[357263905,1743964250032,-241.079896,0.00046108,110]
[357263906,1743964250043,-151.0,0.00046108,120]
[357263907,1743964250053,-151.0,0.00046108,120]
[357263908,1743964250063,-151.0,0.00046108,120]
[357263909,1743964250072,-151.0,0.00046108,120]
[357263910,1743964250082,-151.0,0.00046108,120]
[357263911,1743964250092,-151.0,0.00046108,120]
[357263912,1743964250101,-151.0,0.00046108,120]
[357263913,1743964250110,-151.0,0.00046108,120]
[357263914,1743964250121,-191.976159,0.00046108,120]
[357263915,1743964250132,-151.0,0.00046108,30]
[357263916,1743964250149,-162.335915,0.00046108,30]
[357263917,1743964250159,-231.596222,0.00046108,120]
[357263918,1743964250170,-231.596222,0.00046108,120]
[357263919,1743964250180,-231.596222,0.00046108,120]
[357263920,1743964250190,-231.596222,0.00046108,120]
[357263921,1743964250200,-231.596222,0.00046108,120]
[357263922,1743964250210,-151.0,0.00046108,120]
[357263923,1743964250220,-151.0,0.00046108,120]
[357263924,1743964250230,-151.0,0.00046108,120]
[357263925,1743964250240,-151.0,0.00046108,120]
[357263926,1743964250249,-231.596222,0.00046108,120]
[357263927,1743964250260,-231.596222,0.00046108,120]
[357263928,1743964250270,-231.596222,0.00046108,120]
[357263929,1743964250280,-231.596222,0.00046108,120]
[357263930,1743964250290,-231.596222,0.00046108,120]
[357263931,1743964250300,-151.0,0.00046108,120]
[357263932,1743964250310,-151.0,0.00046108,120]
[357263933,1743964250320,-151.0,0.00046108,120]
[357263934,1743964250330,-151.0,0.00046108,120]
[357263935,1743964250340,-151.0,0.00046108,120]
[357263936,1743964250351,-151.0,0.00046108,120]
[357263937,1743964250360,-151.0,0.00046108,120]
[357263938,1743964250370,-151.0,0.00046108,120]
[357263939,1743964250379,-226.889122,0.00046108,120]
[357263940,1743964250394,-151.0,0.00046115,120]
[357263941,1743964250403,-151.0,0.00046115,120]
[357263942,1743964250414,-1279.54086893,0.00046151,120]
[357263943,1743964250424,-8382.46890006,0.00046173,120]
[357263944,1743964250435,-312.322032,0.00046181,120]
[357263945,1743964250444,-312.322032,0.00046181,120]
[357263946,1743964250455,-312.322032,0.00046181,120]
[357263947,1743964250465,-312.322032,0.00046181,120]
[357263948,1743964250475,-312.322032,0.00046181,120]
[357263949,1743964250485,-312.322032,0.00046181,120]
[357263950,1743964250495,-312.322032,0.00046181,120]
[357263951,1743964250506,-312.322032,0.00046181,120]
[357263952,1743964250516,-312.322032,0.00046181,120]
[357263953,1743964250527,-312.322032,0.00046181,120]
[357263954,1743964250537,-312.322032,0.00046181,120]
[357263955,1743964250547,-312.322032,0.00046181,120]
[357263956,1743964250557,-312.322032,0.00046181,120]
[357263957,1743964250566,-312.322042,0.00046181,120]
[357263958,1743964250576,-1220.591925,0.00046181,120]
[357263959,1743964250586,-1220.591925,0.00046181,120]
[357263960,1743964250597,-1220.591925,0.00046181,120]
[357263961,1743964250606,-1220.591925,0.00046181,120]
[357263962,1743964250616,-1220.591925,0.00046181,120]
[357263963,1743964250627,-1220.591925,0.00046181,120]
[357263964,1743964250641,-36.39388398,0.00046181,120]
[357263965,1743964250655,-1184.19804102,0.00046181,120]
[357263966,1743964250665,-1220.591925,0.00046181,120]
[357263967,1743964250676,-1220.591925,0.00046181,120]
[357263968,1743964250686,-1220.591925,0.00046181,120]
[357263969,1743964250696,-883.11284,0.00046181,120]
[357263970,1743964250707,-883.11284,0.00046181,120]
[357263971,1743964250718,-883.11284,0.00046181,120]
[357263972,1743964250732,-883.11284,0.00046181,120]
[357263973,1743964250743,-883.11284,0.00046181,120]
[357263974,1743964250754,-883.11284,0.00046181,120]
[357263975,1743964250764,-883.11284,0.00046181,120]
[357263976,1743964250776,-883.11284,0.00046181,120]
[357263977,1743964250786,-883.11284,0.00046181,120]
[357263978,1743964250796,-883.112845,0.00046181,120]
[357263979,1743964250806,-201.0732345,0.000462,120]
[357263980,1743964250816,-187.79650868,0.00046247,120]
[357263981,1743964250828,-1279.54086893,0.00046251,120]
[357263982,1743964250840,-151.0,0.0004626,120]
[357263983,1743964250852,-151.0,0.0004626,120]
[357263984,1743964250863,-151.0,0.0004626,120]
[357263985,1743964250873,-234.684529,0.0004626,120]
[357263986,1743964250883,-151.0,0.0004626,120]
[357263987,1743964250899,-151.0,0.0004626,120]
[357263988,1743964250910,-284.37242,0.0004626,120]
[357263989,1743964250919,-249.187258,0.0004626,2]
[357263990,1743964250934,-249.187258,0.0004626,2]
[357263991,1743964250944,-249.187258,0.0004626,2]
[357263992,1743964250954,-249.187258,0.0004626,2]
[357263993,1743964250964,-249.187258,0.0004626,2]
[357263994,1743964250976,-249.187258,0.0004626,2]
[357263995,1743964250986,-249.187258,0.0004626,2]
[357263996,1743964250996,-249.187258,0.0004626,2]
[357263997,1743964251006,-249.187258,0.0004626,2]
[357263998,1743964251016,-249.187264,0.0004626,2]
[357263999,1743964251028,-209.110468,0.0004626,120]
[357264000,1743964251038,-151.0,0.0004626,120]
[357264001,1743964251048,-151.0,0.0004626,120]
[357264002,1743964251058,-151.0,0.0004626,120]
[357264003,1743964251068,-151.0,0.0004626,120]
[357264004,1743964251079,-151.0,0.0004626,120]
[357264005,1743964251090,-441.845092,0.0004626,120]
[357264006,1743964251100,-441.845092,0.0004626,120]
[357264007,1743964251110,-441.845092,0.0004626,120]
[357264008,1743964251120,-441.845092,0.0004626,120]
[357264009,1743964251129,-441.845092,0.0004626,120]
[357264010,1743964251141,-441.845092,0.0004626,120]
[357264011,1743964251151,-441.845092,0.0004626,120]
[357264012,1743964251160,-441.845092,0.0004626,120]
[357264013,1743964251171,-441.845092,0.0004626,120]
[357264014,1743964251181,-441.845089,0.0004626,120]
[357264015,1743964251191,-151.0,0.0004626,120]
[357264016,1743964251202,-151.0,0.0004626,120]
[357264017,1743964251211,-151.0,0.0004626,120]
[357264018,1743964251221,-151.0,0.0004626,120]
[357264019,1743964251231,-151.0,0.0004626,120]
[357264020,1743964251241,-217.853708,0.0004626,120]
[357264021,1743964251252,-217.853708,0.0004626,120]
[357264022,1743964251262,-217.853708,0.0004626,120]
[357264023,1743964251272,-217.853708,0.0004626,120]
[357264024,1743964251282,-217.853708,0.0004626,120]
[357264025,1743964251292,-217.853708,0.0004626,120]
[357264026,1743964251301,-217.853708,0.0004626,120]
[357264027,1743964251311,-217.853708,0.0004626,120]
[357264028,1743964251320,-217.853708,0.0004626,120]
[357264029,1743964251330,-217.853702,0.0004626,120]
[357264030,1743964251340,-368.487247,0.0004626,120]
[357264031,1743964251350,-368.487247,0.0004626,120]
[357264032,1743964251360,-368.487247,0.0004626,120]
[357264033,1743964251370,-368.487247,0.0004626,120]
[357264034,1743964251380,-368.487247,0.0004626,120]
[357264035,1743964251531,-368.487247,0.0004626,120]
[357264036,1743964251542,-368.487247,0.0004626,120]
[357264037,1743964251552,-368.487247,0.0004626,120]
[357264038,1743964251563,-368.487247,0.0004626,120]
[357264039,1743964251573,-368.487255,0.0004626,120]
[357264040,1743964251583,-162.812981,0.0004626,120]
[357264041,1743964251593,-162.812981,0.0004626,120]
[357264042,1743964251604,-162.812981,0.0004626,120]
[357264043,1743964251614,-162.812981,0.0004626,120]
[357264044,1743964251625,-162.812981,0.0004626,120]
[357264045,1743964251635,-162.812981,0.0004626,120]
[357264046,1743964251647,-162.812981,0.0004626,120]
[357264047,1743964251658,-162.812981,0.0004626,120]
[357264048,1743964251669,-162.812981,0.0004626,120]
[357264049,1743964251680,-162.812977,0.0004626,120]
[357264050,1743964251690,-453.731806,0.0004626,120]
[357264051,1743964251700,-453.731806,0.0004626,120]
[357264052,1743964251711,-453.731806,0.0004626,120]
[357264053,1743964251721,-453.731806,0.0004626,120]
[357264054,1743964251731,-453.731806,0.0004626,120]
[357264055,1743964251742,-453.731806,0.0004626,120]
[357264056,1743964251753,-453.731806,0.0004626,120]
[357264057,1743964251763,-453.731806,0.0004626,120]
[357264058,1743964251773,-453.731806,0.0004626,120]
[357264059,1743964251783,-453.731809,0.0004626,120]
[357264060,1743964251794,-407.022466,0.00046273,120]
[357264061,1743964251804,-407.022466,0.00046273,120]
[357264062,1743964251813,-407.022466,0.00046273,120]
[357264063,1743964251823,-407.022466,0.00046273,120]
[357264064,1743964251834,-407.022466,0.00046273,120]
[357264065,1743964251843,-407.022466,0.00046273,120]
[357264066,1743964251853,-407.022466,0.00046273,120]
[357264067,1743964251863,-407.022466,0.00046273,120]
[357264068,1743964251873,-407.022466,0.00046273,120]
[357264069,1743964251883,-407.022474,0.00046273,120]
[357264070,1743964251896,-151.0,0.00046273,120]
[357264071,1743964251906,-151.0,0.00046273,120]
[357264072,1743964251916,-151.0,0.00046273,120]
[357264073,1743964251927,-151.0,0.00046273,120]
[357264074,1743964251938,-151.0,0.00046273,120]
[357264075,1743964251951,-192.371154,0.00046273,120]
[357264076,1743964251962,-192.371154,0.00046273,120]
[357264077,1743964251972,-192.371154,0.00046273,120]
[357264078,1743964251983,-192.371154,0.00046273,120]
[357264079,1743964251995,-192.371154,0.00046273,120]
[357264080,1743964252006,-192.371154,0.00046273,120]
[357264081,1743964252016,-192.371154,0.00046273,120]
[357264082,1743964252027,-192.371154,0.00046273,120]
[357264083,1743964252037,-192.371154,0.00046273,120]
[357264084,1743964252049,-192.37116,0.00046273,120]
[357264085,1743964252059,-151.0,0.00046273,120]
[357264086,1743964252069,-151.0,0.00046273,120]
[357264087,1743964252078,-151.0,0.00046273,120]
[357264088,1743964252088,-151.0,0.00046273,120]
[357264089,1743964252098,-279.46654,0.00046273,120]
[357264090,1743964252108,-305.962811,0.00046273,120]
[357264091,1743964252118,-305.962811,0.00046273,120]
[357264092,1743964252128,-305.962811,0.00046273,120]
[357264093,1743964252141,-305.962811,0.00046273,120]
[357264094,1743964252150,-305.962811,0.00046273,120]
[357264095,1743964252160,-305.962811,0.00046273,120]
[357264096,1743964252170,-305.962811,0.00046273,120]
[357264097,1743964252180,-305.962811,0.00046273,120]
[357264098,1743964252190,-305.962811,0.00046273,120]
[357264099,1743964252200,-305.962813,0.00046273,120]
[357264100,1743964252210,-151.0,0.00046273,120]
[357264101,1743964252220,-154.037813,0.00046273,120]
[357264102,1743964252230,-58923.80302865,0.00046276,20]
[357264103,1743964252244,-3890.13507793,0.00046276,20]
[357264104,1743964252291,-343.75534736,0.00023673,2]
[357264105,1743964252304,-3211.14304752,0.00023673,2]
[357264106,1743964252314,-364.0,0.00033642,30]
[357264107,1743964252323,-151.0,0.00042958,2]
[357264108,1743964252333,-23.85695198,0.00046276,20]
[357264109,1743964252346,-1604.65568,0.00046276,20]
[357264312,1743965433583,-8823.127632,0.000218,2]
[357264313,1743965433596,-300.0,0.00021842,2]
[357264314,1743965433607,-3146.67219396,0.00021843,2]
[357264315,1743965433623,-10028.66628147,0.000219,3]
[357264317,1743965433635,-160.0,0.000219,3]
[357264319,1743965433646,-11864.57179044,0.000219,3]
[357264322,1743965433670,-397.5,0.000219,3]
[357264323,1743965433696,-263.23569721,0.000219,3]
[357264324,1743965433708,-1405.71708492,0.00021943,2]
[357264325,1743965433723,-403.737,0.00021943,2]
[357264346,1743965438693,-464.08112466,0.00021943,2]
[357264350,1743965438704,-9503.01555782,0.00021943,2]
[357264352,1743965438717,-4785.51830649,0.00021943,2]
[357264354,1743965438729,-8337.93092611,0.00021943,2]
[357264357,1743965438739,-4321.14753299,0.000224,4]
[357264360,1743965438748,-456.44,0.00022762,3]
[357264362,1743965438758,-4321.14753298,0.00022762,4]
[357264364,1743965438767,-500.0,0.00022771,2]
[357264366,1743965438777,-500.0,0.00022771,2]
[357264368,1743965438787,-500.0,0.00022771,2]
[357264370,1743965438797,-500.0,0.00022771,2]
[357264372,1743965438806,-500.0,0.00022771,2]
[357264374,1743965438816,-538.4249112,0.00022771,2]
[357264376,1743965438826,-500.0,0.00022771,2]
[357264378,1743965438836,-500.0,0.00022771,2]
[357264380,1743965438846,-192.80020087,0.00022771,2]
[357264382,1743965438856,-500.0,0.00022771,2]
[357264384,1743965438870,-500.0,0.00022771,2]
[357264387,1743965438889,-184.22413723,0.00022771,2]
[357264390,1743965438906,-1137.02405962,0.00022771,2]
[357264392,1743965438917,-500.0,0.00022771,2]
[357264394,1743965438927,-1137.02405962,0.00022771,2]
[357264396,1743965438938,-500.0,0.00022771,2]
[357264398,1743965438949,-500.0,0.00022771,2]
[357264400,1743965438960,-1137.02405962,0.00022771,2]
[357264402,1743965438970,-500.0,0.00022771,2]
[357264405,1743965438980,-1137.02405962,0.00022771,2]
[357264407,1743965438991,-500.0,0.00022771,2]
[357264409,1743965439001,-500.0,0.00022771,2]
[357264411,1743965439011,-1137.02405962,0.00022771,2]
[357264413,1743965439022,-500.0,0.00022771,2]
[357264415,1743965439032,-500.0,0.00022771,2]
[357264417,1743965439043,-1137.02405962,0.00022771,2]
[357264419,1743965439053,-500.0,0.00022771,2]
[357264421,1743965439064,-500.0,0.00022771,2]
[357264423,1743965439075,-500.0,0.00022771,2]
[357264425,1743965439086,-1137.02405962,0.00022771,2]
[357264427,1743965439097,-500.0,0.00022771,2]
[357264429,1743965439108,-500.0,0.00022771,2]
[357264431,1743965439126,-500.0,0.00022771,2]
[357264433,1743965439136,-1137.02405962,0.00022771,2]
[357264436,1743965439146,-500.0,0.00022771,2]
[357264438,1743965439156,-500.0,0.00022771,2]
[357264440,1743965439166,-1137.02405962,0.00022771,2]
[357264442,1743965439176,-500.0,0.00022771,2]
[357264444,1743965439186,-500.0,0.00022771,2]
[357264446,1743965439198,-1137.02405962,0.00022771,2]
[357264448,1743965439208,-500.0,0.00022771,2]
[357264450,1743965439219,-1137.02405962,0.00022771,2]
[357264452,1743965439229,-500.0,0.00022771,2]
[357264454,1743965439239,-1137.02405962,0.00022771,2]
[357264456,1743965439249,-500.0,0.00022771,2]
[357264458,1743965439260,-1137.02405962,0.00022771,2]
[357264460,1743965439270,-500.0,0.00022771,2]
[357264463,1743965439280,-1137.02405962,0.00022771,2]
[357264465,1743965439290,-500.0,0.00022771,2]
[357264467,1743965439301,-500.0,0.00022771,2]
[357264469,1743965439310,-500.0,0.00022771,2]
[357264471,1743965439320,-1137.02405962,0.00022771,2]
[357264473,1743965439332,-500.0,0.00022771,2]
[357264475,1743965439342,-500.0,0.00022771,2]
[357264477,1743965439352,-1137.02405962,0.00022771,2]
[357264479,1743965439365,-500.0,0.00022771,2]
[357264481,1743965439374,-1137.02405962,0.00022771,2]
[357264483,1743965439384,-500.0,0.00022771,2]
[357264485,1743965439393,-500.0,0.00022771,2]
[357264487,1743965439405,-500.0,0.00022771,2]
[357264489,1743965439415,-1137.02405962,0.00022771,2]
[357264491,1743965439426,-1137.02405962,0.00022771,2]
[357264493,1743965439436,-500.0,0.00022771,2]
[357264495,1743965439446,-500.0,0.00022771,2]
[357264497,1743965439456,-1137.02405962,0.00022771,2]
[357264500,1743965439466,-500.0,0.00022771,2]
[357264502,1743965439475,-500.0,0.00022771,2]
[357264504,1743965439485,-1137.02405962,0.00022771,2]
[357264506,1743965439495,-500.0,0.00022771,2]
[357264507,1743965439504,-500.0,0.00022771,2]
[357264508,1743965439513,-1137.02405962,0.00022771,2]
[357264509,1743965439526,-500.0,0.00022771,2]
[357264510,1743965439535,-500.0,0.00022771,2]
[357264511,1743965439545,-500.0,0.00022771,2]
[357264512,1743965439554,-1137.02405962,0.00022771,2]
[357264513,1743965439563,-500.0,0.00022771,2]
[357264514,1743965439573,-500.0,0.00022771,2]
[357264515,1743965439584,-1137.02405962,0.00022771,2]
[357264516,1743965439593,-500.0,0.00022771,2]
[357264517,1743965439603,-500.0,0.00022771,2]
[357264518,1743965439615,-1137.02405962,0.00022771,2]
[357264519,1743965439625,-500.0,0.00022771,2]
[357264520,1743965439634,-500.0,0.00022771,2]
[357264521,1743965439644,-500.0,0.00022771,2]
[357264523,1743965439654,-1137.02405962,0.00022771,2]
[357264525,1743965439663,-500.0,0.00022771,2]
[357264527,1743965439672,-500.0,0.00022771,2]
[357264529,1743965439681,-1137.02405962,0.00022771,2]
[357264531,1743965439691,-500.0,0.00022771,2]
[357264533,1743965439701,-500.0,0.00022771,2]
[357264535,1743965439711,-1137.02405962,0.00022771,2]
[357264537,1743965439723,-500.0,0.00022771,2]
[357264539,1743965439733,-253.28262432,0.00022771,2]
[357264541,1743965439743,-1137.02405962,0.00022771,2]
[357264543,1743965439754,-500.0,0.00022771,2]
[357264545,1743965439764,-500.0,0.00022771,2]
[357264547,1743965439774,-1137.02405962,0.00022771,2]
[357264549,1743965439784,-500.0,0.00022771,2]
[357264551,1743965439795,-500.0,0.00022771,2]
[357264554,1743965439806,-1137.02405962,0.00022771,2]
[357264556,1743965439817,-500.0,0.00022771,2]
[357264558,1743965439827,-1137.02405962,0.00022771,2]
[357264560,1743965439837,-500.0,0.00022771,2]
[357264562,1743965439847,-1137.02405962,0.00022771,2]
[357264564,1743965439858,-500.0,0.00022771,2]
[357264566,1743965439872,-500.0,0.00022771,2]
[357264568,1743965439883,-500.0,0.00022771,2]
[357264570,1743965439893,-1137.02405962,0.00022771,2]
[357264572,1743965439903,-500.0,0.00022771,2]
[357264575,1743965439913,-500.0,0.00022771,2]
[357264577,1743965439923,-500.0,0.00022771,2]
[357264579,1743965439932,-500.0,0.00022771,2]
[357264581,1743965439943,-1137.02405962,0.00022771,2]
[357264583,1743965439953,-500.0,0.00022771,2]
[357264585,1743965439963,-1137.02405962,0.00022771,2]
[357264588,1743965439978,-500.0,0.00022771,2]
[357264590,1743965439988,-500.0,0.00022771,2]
[357264592,1743965439999,-1137.02405962,0.00022771,2]
[357264594,1743965440010,-500.0,0.00022771,2]
[357264596,1743965440020,-500.0,0.00022771,2]
[357264598,1743965440030,-1137.02405962,0.00022771,2]
[357264601,1743965440040,-500.0,0.00022771,2]
[357264604,1743965440051,-1137.02405962,0.00022771,2]
[357264607,1743965440061,-500.0,0.00022771,2]
[357264610,1743965440071,-1137.02405962,0.00022771,2]
[357264613,1743965440081,-500.0,0.00022771,2]
[357264616,1743965440092,-1137.02405962,0.00022771,2]
[357264619,1743965440102,-500.0,0.00022771,2]
[357264623,1743965440114,-500.0,0.00022771,2]
[357264626,1743965440125,-500.0,0.00022771,2]
[357264629,1743965440136,-1137.02405962,0.00022771,2]
[357264633,1743965440146,-500.0,0.00022771,2]
[357264636,1743965440156,-633.4319459,0.00022771,2]
[357264638,1743965440166,-1137.02405962,0.00022771,2]
[357264642,1743965440176,-500.0,0.00022771,2]
[357264645,1743965440186,-1137.02405962,0.00022771,2]
[357264647,1743965440196,-500.0,0.00022771,2]
[357264649,1743965440206,-500.0,0.00022771,2]
[357264651,1743965440215,-1137.02405962,0.00022771,2]
[357264653,1743965440225,-500.0,0.00022771,2]
[357264655,1743965440235,-1137.02405962,0.00022771,2]
[357264657,1743965440245,-500.0,0.00022771,2]
[357264659,1743965440255,-1137.02405962,0.00022771,2]
[357264661,1743965440264,-500.0,0.00022771,2]
[357264663,1743965440274,-1137.02405962,0.00022771,2]
[357264665,1743965440285,-500.0,0.00022771,2]
[357264667,1743965440295,-1137.02405962,0.00022771,2]
[357264669,1743965440305,-500.0,0.00022771,2]
[357264671,1743965440315,-500.0,0.00022771,2]
[357264673,1743965440324,-1137.02405962,0.00022771,2]
[357264675,1743965440336,-500.0,0.00022771,2]
[357264677,1743965440346,-500.0,0.00022771,2]
[357264679,1743965440357,-1137.02405962,0.00022771,2]
[357264681,1743965440371,-500.0,0.00022771,2]
[357264683,1743965440381,-1137.02405962,0.00022771,2]
[357264685,1743965440392,-500.0,0.00022771,2]
[357264687,1743965440403,-1137.02405962,0.00022771,2]
[357264689,1743965440414,-1137.02405962,0.00022771,2]
[357264691,1743965440424,-500.0,0.00022771,2]
[357264693,1743965440435,-1137.02405962,0.00022771,2]
[357264695,1743965440445,-500.0,0.00022771,2]
[357264697,1743965440455,-1137.02405962,0.00022771,2]
[357264699,1743965440465,-500.0,0.00022771,2]
[357264701,1743965440475,-1137.02405962,0.00022771,2]
[357264704,1743965440485,-1137.02405962,0.00022771,2]
[357264706,1743965440495,-1137.02405962,0.00022771,2]
[357264708,1743965440504,-1137.02405962,0.00022771,2]
[357264710,1743965440514,-1137.02405962,0.00022771,2]
[357264712,1743965440524,-1137.02405962,0.00022771,2]
[357264714,1743965440534,-1137.02405962,0.00022771,2]
[357264716,1743965440545,-1137.02405962,0.00022771,2]
[357264718,1743965440555,-1137.02405962,0.00022771,2]
[357264720,1743965440565,-1137.02405962,0.00022771,2]
[357264722,1743965440575,-1137.02405962,0.00022771,2]
[357264724,1743965440586,-1137.02405962,0.00022771,2]
[357264726,1743965440597,-1137.02405962,0.00022771,2]
[357264728,1743965440607,-500.0,0.00022773,2]
[357264730,1743965440623,-500.0,0.00022773,2]
[357264732,1743965440634,-500.0,0.00022773,2]
[357264734,1743965440646,-500.0,0.00022773,2]
[357264736,1743965440657,-268.47178359,0.00022773,2]
[357264738,1743965440668,-500.0,0.00022773,2]
[357264740,1743965440678,-500.0,0.00022773,2]
[357264742,1743965440689,-500.0,0.00022773,2]
[357264744,1743965440699,-500.0,0.00022773,2]
[357264746,1743965440710,-500.0,0.00022773,2]